{"text_format":"1","workbook":"xlsx","n_sheets":4,"sheets":["Februari 2019","Keuzetabellen","Facturatie","Uren"],"not_rendered":{"charts":0,"images":0,"macros":1,"external_links":1,"defined_names":11,"comments":1,"pivot_tables":0},"unopened":[],"bounds":{"document_bytes":16777216,"sheet_cells":100000,"rows_first":2000,"rows_last":500,"rows_between":2000,"halvings":0,"cell_chars":16384,"cell_head_chars":4096},"cells_cut":0,"cells_raw":0,"read":"whole","date_system":"1900"}

{"sheet":"Februari 2019","index":0,"n_rows":44,"n_cols":226,"rows_kept":44,"cut":false,"hidden":false,"merged":[[0,0,0,1],[1,0,2,1],[1,2,1,9],[4,0,4,1],[37,0,37,1],[35,0,35,1],[36,0,36,1],[32,0,32,1],[34,0,34,1],[19,0,19,1],[11,0,11,1],[5,0,5,1],[6,0,6,1],[7,0,7,1],[9,0,9,1],[10,0,10,1],[12,0,12,1],[27,0,27,1],[29,0,29,1],[30,0,30,1],[1,18,1,25],[14,0,14,1],[15,0,15,1],[16,0,16,1],[17,0,17,1],[1,10,1,17],[31,0,31,1],[20,0,20,1],[21,0,21,1],[22,0,22,1],[24,0,24,1],[25,0,25,1],[26,0,26,1],[1,26,1,33],[1,34,1,41],[1,42,1,49],[1,218,1,225],[1,170,1,177],[1,178,1,185],[1,186,1,193],[1,194,1,201],[1,202,1,209],[1,210,1,217],[1,50,1,57],[1,58,1,65],[1,66,1,73],[40,0,40,1],[42,0,42,1],[41,0,41,1],[39,0,39,1],[1,162,1,169],[1,74,1,81],[1,82,1,89],[1,90,1,97],[1,98,1,105],[1,106,1,113],[1,114,1,121],[1,122,1,129],[1,130,1,137],[1,138,1,145],[1,146,1,153],[1,154,1,161]]}
["Maand"]
[null,null,"2019-02-01",null,null,null,null,null,null,null,"2019-02-02",null,null,null,null,null,null,null,"2019-02-03",null,null,null,null,null,null,null,"2019-02-04",null,null,null,null,null,null,null,"2019-02-05",null,null,null,null,null,null,null,"2019-02-06",null,null,null,null,null,null,null,"2019-02-07",null,null,null,null,null,null,null,"2019-02-08",null,null,null,null,null,null,null,"2019-02-09",null,null,null,null,null,null,null,"2019-02-10",null,null,null,null,null,null,null,"2019-02-11",null,null,null,null,null,null,null,"2019-02-12",null,null,null,null,null,null,null,"2019-02-13",null,null,null,null,null,null,null,"2019-02-14",null,null,null,null,null,null,null,"2019-02-15",null,null,null,null,null,null,null,"2019-02-16",null,null,null,null,null,null,null,"2019-02-17",null,null,null,null,null,null,null,"2019-02-18",null,null,null,null,null,null,null,"2019-02-19",null,null,null,null,null,null,null,"2019-02-20",null,null,null,null,null,null,null,"2019-02-21",null,null,null,null,null,null,null,"2019-02-22",null,null,null,null,null,null,null,"2019-02-23",null,null,null,null,null,null,null,"2019-02-24",null,null,null,null,null,null,null,"2019-02-25",null,null,null,null,null,null,null,"2019-02-26",null,null,null,null,null,null,null,"2019-02-27",null,null,null,null,null,null,null,"2019-02-28"]
[null,null,"Taak","Soort activiteit","Beschrijving","Type","Imputatienummer","uren","Overuren","Opmerkingen","Taak","Soort activiteit","Beschrijving","Type","Imputatienummer","uren","Overuren","Opmerkingen","Taak","Soort activiteit","Beschrijving","Type","Imputatienummer","uren","Overuren","Opmerkingen","Taak","Soort activiteit","Beschrijving","Type","Imputatienummer","uren","Overuren","Opmerkingen","Taak","Soort activiteit","Beschrijving","Type","Imputatienummer","uren","Overuren","Opmerkingen","Taak","Soort activiteit","Beschrijving","Type","Imputatienummer","uren","Overuren","Opmerkingen","Taak","Soort activiteit","Beschrijving","Type","Imputatienummer","uren","Overuren","Opmerkingen","Taak","Soort activiteit","Beschrijving","Type","Imputatienummer","uren","Overuren","Opmerkingen","Taak","Soort activiteit","Beschrijving","Type","Imputatienummer","uren","Overuren","Opmerkingen","Taak","Soort activiteit","Beschrijving","Type","Imputatienummer","uren","Overuren","Opmerkingen","Taak","Soort activiteit","Beschrijving","Type","Imputatienummer","uren","Overuren","Opmerkingen","Taak","Soort activiteit","Beschrijving","Type","Imputatienummer","uren","Overuren","Opmerkingen","Taak","Soort activiteit","Beschrijving","Type","Imputatienummer","uren","Overuren","Opmerkingen","Taak","Soort activiteit","Beschrijving","Type","Imputatienummer","uren","Overuren","Opmerkingen","Taak","Soort activiteit","Beschrijving","Type","Imputatienummer","uren","Overuren","Opmerkingen","Taak","Soort activiteit","Beschrijving","Type","Imputatienummer","uren","Overuren","Opmerkingen","Taak","Soort activiteit","Beschrijving","Type","Imputatienummer","uren","Overuren","Opmerkingen","Taak","Soort activiteit","Beschrijving","Type","Imputatienummer","uren","Overuren","Opmerkingen","Taak","Soort activiteit","Beschrijving","Type","Imputatienummer","uren","Overuren","Opmerkingen","Taak","Soort activiteit","Beschrijving","Type","Imputatienummer","uren","Overuren","Opmerkingen","Taak","Soort activiteit","Beschrijving","Type","Imputatienummer","uren","Overuren","Opmerkingen","Taak","Soort activiteit","Beschrijving","Type","Imputatienummer","uren","Overuren","Opmerkingen","Taak","Soort activiteit","Beschrijving","Type","Imputatienummer","uren","Overuren","Opmerkingen","Taak","Soort activiteit","Beschrijving","Type","Imputatienummer","uren","Overuren","Opmerkingen","Taak","Soort activiteit","Beschrijving","Type","Imputatienummer","uren","Overuren","Opmerkingen","Taak","Soort activiteit","Beschrijving","Type","Imputatienummer","uren","Overuren","Opmerkingen","Taak","Soort activiteit","Beschrijving","Type","Imputatienummer","uren","Overuren","Opmerkingen","Taak","Soort activiteit","Beschrijving","Type","Imputatienummer","uren","Overuren","Opmerkingen"]
[null,"A",null,null,null,null,{"$f":"IFERROR(INDIRECT(F4),\"\")","v":""},null,null,null,null,null,null,null,{"$f":"IFERROR(INDIRECT(N4),\"\")","v":""},null,null,null,null,null,null,null,{"$f":"IFERROR(INDIRECT(V4),\"\")","v":""},null,null,null,null,"Algemene_activiteit","coordinatie werken - voorbereiding","Fixed",{"$f":"IFERROR(INDIRECT(AD4),\"\")","v":"ST-00309-01-01"},4,null,null,null,"Algemene_activiteit","coordinatie werken - uitvoering","Fixed",{"$f":"IFERROR(INDIRECT(AL4),\"\")","v":"ST-00309-01-01"},3,null,null,null,"Algemene_activiteit","handover project (labeling, verificatie AsBuilts, manuals, …)","Fixed",{"$f":"IFERROR(INDIRECT(AT4),\"\")","v":"ST-00309-01-01"},3.75,null,null,null,"Algemene_activiteit","planning en coordinatie werken ","Meeting",{"$f":"IFERROR(INDIRECT(BB4),\"\")","v":"ST-00309-01-03"},4,null,null,null,"Algemene_activiteit","peterschap post ","Fixed",{"$f":"IFERROR(INDIRECT(BJ4),\"\")","v":"ST-00309-01-01"},3,null,null,null,null,null,null,{"$f":"IFERROR(INDIRECT(BR4),\"\")","v":""},null,null,null,null,null,null,null,{"$f":"IFERROR(INDIRECT(BZ4),\"\")","v":""},null,null,null,"Fan outdoor cooler","Algemene_activiteit","coordinatie werken - voorbereiding","Fixed",{"$f":"IFERROR(INDIRECT(CH4),\"\")","v":"ST-00309-01-01"},2,null,"prep SP","herstellen fan cooler","Algemene_activiteit","coordinatie werken - uitvoering","Fixed",{"$f":"IFERROR(INDIRECT(CP4),\"\")","v":"ST-00309-01-01"},1.25,null,null,"SF6 lek","curatief_onderhoud","HV - AC switchgear","Variable",{"$f":"IFERROR(INDIRECT(CX4),\"\")","v":"ST-00309-02-01"},null,2,null,null,"Algemene_activiteit","planning en coordinatie werken ","Meeting",{"$f":"IFERROR(INDIRECT(DF4),\"\")","v":"ST-00309-01-03"},2.5,null,null,null,"Algemene_activiteit","administratie ","Fixed",{"$f":"IFERROR(INDIRECT(DN4),\"\")","v":"ST-00309-01-01"},4,null,null,null,null,null,null,{"$f":"IFERROR(INDIRECT(DV4),\"\")","v":""},null,null,null,null,null,null,null,{"$f":"IFERROR(INDIRECT(ED4),\"\")","v":""},null,null,null,null,"Algemene_activiteit","coordinatie werken - uitvoering","Fixed",{"$f":"IFERROR(INDIRECT(EL4),\"\")","v":"ST-00309-01-01"},1,null,null,"Geven inductie","Algemene_activiteit","veiligheidsopleidingen geven","Fixed",{"$f":"IFERROR(INDIRECT(ET4),\"\")","v":"ST-00309-01-01"},1.5,null,null,"Opleiding MSP",null,null,"Niet_Nemo_activiteit",{"$f":"IFERROR(INDIRECT(FB4),\"\")","v":"Elia-imp. Nummer"},7.75,null,null,"Opleiding MSP",null,null,"Niet_Nemo_activiteit",{"$f":"IFERROR(INDIRECT(FJ4),\"\")","v":"Elia-imp. Nummer"},7.75,null,null,null,"Algemene_activiteit","schakelen en veiligstellen ","Niet_Nemo_activiteit",{"$f":"IFERROR(INDIRECT(FR4),\"\")","v":"Elia-imp. Nummer"},2.5,null,"Schakelen 150-385",null,null,null,null,{"$f":"IFERROR(INDIRECT(FZ4),\"\")","v":""},null,null,null,null,null,null,null,{"$f":"IFERROR(INDIRECT(GH4),\"\")","v":""},null,null,null,"Vergunningen updaten","Algemene_activiteit","coordinatie werken - uitvoering","Fixed",{"$f":"IFERROR(INDIRECT(GP4),\"\")","v":"ST-00309-01-01"},3,null,"Coördinatie werken  openstaande punte n vincotte","MAC extended ","Algemene_activiteit",null,"Niet_Nemo_activiteit",{"$f":"IFERROR(INDIRECT(GX4),\"\")","v":"Elia-imp. Nummer"},4.75,null,"MAC extended",null,"Algemene_activiteit","coordinatie werken - uitvoering","Fixed",{"$f":"IFERROR(INDIRECT(HF4),\"\")","v":"ST-00309-01-01"},5,null,null,"Weekly meetings","Algemene_activiteit","coordinatie werken - voorbereiding","Meeting",{"$f":"IFERROR(INDIRECT(HN4),\"\")","v":"ST-00309-01-03"},3]
[null,null,null,null,null,null,null,null,null,null,null,null,null,null,null,null,null,null,null,null,null,null,null,null,null,null,null,null,null,null,null,null,null,null,null,null,null,null,null,null,null,null,null,null,null,null,null,null,null,null,null,null,null,null,null,null,null,null,null,null,null,null,null,null,null,null,null,null,null,null,null,null,null,null,null,null,null,null,null,null,null,null,null,null,null,null,null,null,null,null,"EPC-O&M",null,null,null,null,null,null,null,null,null,null,null,null,null,null,null,null,null,null,null,null,null,null,null,null,null,null,null,null,null,null,null,null,null,null,null,null,null,null,null,null,null,null,null,null,null,null,null,null,null,null,null,null,null,null,null,"Cleaning",null,null,null,null,null,null,null,"O&M"]
[null,null,null,null,null,null,null,null,null,null,null,null,null,null,null,null,null,null,null,null,null,null,null,null,null,null,null,null,null,null,null,null,null,null,null,null,null,null,null,null,null,null,null,null,null,null,null,null,null,null,null,null,null,null,null,null,null,null,null,null,null,null,null,null,null,null,null,null,null,null,null,null,null,null,null,null,null,null,null,null,null,null,null,null,null,null,null,null,null,null,"herstellen fan cooler",null,null,null,null,null,null,null,"SF6-lek oplossen",null,null,null,null,null,null,null,null,null,null,null,null,null,null,null,null,null,null,null,null,null,null,null,null,null,null,null,null,null,null,null,null,null,null,null,null,null,null,null,"GIS MM",null,null,null,null,null,null,null,"Vincotte",null,null,null,null,null,null,null,"Asfalt",null,null,null,null,null,null,null,null,null,null,null,null,null,null,null,null,null,null,null,null,null,null,null,null,null,null,null,null,null,null,null,null,null,null,null,null,null,null,null,"Vergunningen updaten",null,null,null,null,null,null,null,"WM Diesel"]
[null,null,null,null,null,null,null,null,null,null,null,null,null,null,null,null,null,null,null,null,null,null,null,null,null,null,null,null,null,null,null,null,null,null,null,null,null,null,null,null,null,null,null,null,null,null,null,null,null,null,null,null,null,null,null,null,null,null,null,null,null,null,null,null,null,null,null,null,null,null,null,null,null,null,null,null,null,null,null,null,null,null,"Fan outdoor cooler",null,null,null,null,null,null,null,"Fire protection",null,null,null,null,null,null,null,"olie drainage TFO",null,null,null,null,null,null,null,null,null,null,null,null,null,null,null,null,null,null,null,null,null,null,null,null,null,null,null,null,null,null,null,null,null,null,null,null,null,null,null,"TFO MM",null,null,null,null,null,null,null,"Diesel MM",null,null,null,null,null,null,null,"Building MM",null,null,null,null,null,null,null,null,null,null,null,null,null,null,null,null,null,null,null,null,null,null,null,null,null,null,null,null,null,null,null,null,null,null,null,null,null,null,null,null,null,null,null,null,null,null,null,"WM CWC"]
[null,null,null,null,null,null,null,null,null,null,null,null,null,null,null,null,null,null,null,null,null,null,null,null,null,null,null,null,null,null,null,null,null,null,null,null,null,null,null,null,null,null,null,null,null,null,null,null,null,null,null,null,null,null,null,null,null,null,null,null,null,null,null,null,null,null,null,null,null,null,null,null,null,null,null,null,null,null,null,null,null,null,null,null,null,null,null,null,null,null,"IT elia",null,null,null,null,null,null,null,null,null,null,null,null,null,null,null,null,null,null,null,null,null,null,null,null,null,null,null,null,null,null,null,null,null,null,null,null,null,null,null,null,null,null,null,null,null,null,null,null,null,null,null,null,null,null,null,"CWC MM",null,null,null,null,null,null,null,"IT elia"]
[null,"B",null,null,null,null,{"$f":"IFERROR(INDIRECT(F9),\"\")","v":""},null,null,null,null,null,null,null,{"$f":"IFERROR(INDIRECT(N9),\"\")","v":""},null,null,null,null,null,null,null,{"$f":"IFERROR(INDIRECT(V9),\"\")","v":""},null,null,null,null,"Algemene_activiteit","coordinatie werken - voorbereiding","Fixed",{"$f":"IFERROR(INDIRECT(AD9),\"\")","v":"ST-00309-01-01"},4,null,null,null,"Algemene_activiteit","coordinatie werken - uitvoering","Fixed",{"$f":"IFERROR(INDIRECT(AL9),\"\")","v":"ST-00309-01-01"},3,null,null,null,"Algemene_activiteit","handover project (labeling, verificatie AsBuilts, manuals, …)","Fixed",{"$f":"IFERROR(INDIRECT(AT9),\"\")","v":"ST-00309-01-01"},3.75,null,null,null,"Algemene_activiteit","planning en coordinatie werken ","Meeting",{"$f":"IFERROR(INDIRECT(BB9),\"\")","v":"ST-00309-01-03"},4,null,null,null,"Algemene_activiteit","peterschap post ","Fixed",{"$f":"IFERROR(INDIRECT(BJ9),\"\")","v":"ST-00309-01-01"},3,null,null,null,null,null,null,{"$f":"IFERROR(INDIRECT(BR9),\"\")","v":""},null,null,null,null,null,null,null,{"$f":"IFERROR(INDIRECT(BZ9),\"\")","v":""},null,null,null,"Fan outdoor cooler","Algemene_activiteit","coordinatie werken - voorbereiding","Fixed",{"$f":"IFERROR(INDIRECT(CH9),\"\")","v":"ST-00309-01-01"},2,null,"prep SP","herstellen fan cooler","Algemene_activiteit","coordinatie werken - uitvoering","Fixed",{"$f":"IFERROR(INDIRECT(CP9),\"\")","v":"ST-00309-01-01"},1.25,null,null,"SF6 lek","curatief_onderhoud","HV - AC switchgear","Variable",{"$f":"IFERROR(INDIRECT(CX9),\"\")","v":"ST-00309-02-01"},null,2,null,null,"Algemene_activiteit","planning en coordinatie werken ","Meeting",{"$f":"IFERROR(INDIRECT(DF9),\"\")","v":"ST-00309-01-03"},2.5,null,null,null,"Algemene_activiteit","administratie ","Fixed",{"$f":"IFERROR(INDIRECT(DN9),\"\")","v":"ST-00309-01-01"},4,null,null,null,null,null,null,{"$f":"IFERROR(INDIRECT(DV9),\"\")","v":""},null,null,null,null,null,null,null,{"$f":"IFERROR(INDIRECT(ED9),\"\")","v":""},null,null,null,null,"Algemene_activiteit","coordinatie werken - uitvoering","Fixed",{"$f":"IFERROR(INDIRECT(EL9),\"\")","v":"ST-00309-01-01"},1,null,null,"Geven inductie","Algemene_activiteit","veiligheidsopleidingen geven","Fixed",{"$f":"IFERROR(INDIRECT(ET9),\"\")","v":"ST-00309-01-01"},1.5,null,null,"Opleiding MSP",null,null,"Niet_Nemo_activiteit",{"$f":"IFERROR(INDIRECT(FB9),\"\")","v":"Elia-imp. Nummer"},7.75,null,null,"Opleiding MSP",null,null,"Niet_Nemo_activiteit",{"$f":"IFERROR(INDIRECT(FJ9),\"\")","v":"Elia-imp. Nummer"},7.75,null,null,null,"Algemene_activiteit","schakelen en veiligstellen ","Niet_Nemo_activiteit",{"$f":"IFERROR(INDIRECT(FR9),\"\")","v":"Elia-imp. Nummer"},2.5,null,"Schakelen 150-385",null,null,null,null,{"$f":"IFERROR(INDIRECT(FZ9),\"\")","v":""},null,null,null,null,null,null,null,{"$f":"IFERROR(INDIRECT(GH9),\"\")","v":""},null,null,null,"Vergunningen updaten","Algemene_activiteit","coordinatie werken - uitvoering","Fixed",{"$f":"IFERROR(INDIRECT(GP9),\"\")","v":"ST-00309-01-01"},3,null,"Coördinatie werken  openstaande punte n vincotte","MAC extended ","Algemene_activiteit",null,"Niet_Nemo_activiteit",{"$f":"IFERROR(INDIRECT(GX9),\"\")","v":"Elia-imp. Nummer"},4.75,null,"MAC extended",null,"Algemene_activiteit","coordinatie werken - uitvoering","Fixed",{"$f":"IFERROR(INDIRECT(HF9),\"\")","v":"ST-00309-01-01"},5,null,null,"Weekly meetings","Algemene_activiteit","coordinatie werken - voorbereiding","Meeting",{"$f":"IFERROR(INDIRECT(HN9),\"\")","v":"ST-00309-01-03"},3]
[null,null,null,null,null,null,{"$f":"IFERROR(INDIRECT(F10),\"\")","v":""},null,null,null,null,null,null,null,{"$f":"IFERROR(INDIRECT(N10),\"\")","v":""},null,null,null,null,null,null,null,"",null,null,null,null,"Algemene_activiteit","coordinatie werken - uitvoering","Fixed","ST-00309-01-01",2,null,null,null,"Algemene_activiteit","coordinatie werken - voorbereiding","Fixed","ST-00309-01-01",2,null,null,null,"Algemene_activiteit","administratie ","Niet_Nemo_activiteit","Elia-imp. Nummer",null,null,null,null,"curatief_onderhoud","Building - site access and security","Fixed","ST-00309-01-01",2,null,null,null,null,null,null,"",null,null,null,null,null,null,null,"",null,null,null,null,null,null,null,"",null,null,null,null,"Algemene_activiteit","coordinatie werken - uitvoering","Fixed","ST-00309-01-01",2,null,"Engie","Fire protection","Algemene_activiteit","coordinatie werken - uitvoering","Fixed",{"$f":"IFERROR(INDIRECT(CP10),\"\")","v":"ST-00309-01-01"},1,null,null,null,"Algemene_activiteit","Incident analyse","Variable",{"$f":"IFERROR(INDIRECT(CX10),\"\")","v":"ST-00309-02-01"},3,null,"analyse en comm incident RB",null,"Algemene_activiteit","planning en coordinatie werken ","Fixed",{"$f":"IFERROR(INDIRECT(DF10),\"\")","v":"ST-00309-01-01"},2,null,null,null,"Algemene_activiteit","coordinatie werken - uitvoering","Fixed",{"$f":"IFERROR(INDIRECT(DN10),\"\")","v":"ST-00309-01-01"},3,null,"coördinatie WM en Engie",null,null,null,null,{"$f":"IFERROR(INDIRECT(DV10),\"\")","v":""},null,null,null,null,null,null,null,"",null,null,null,null,"Algemene_activiteit","coordinatie werken - voorbereiding","Fixed","ST-00309-01-01",2,null,null,"MM diesel","preventatief_onderhoud","auxiliary power supply ","Fixed",{"$f":"IFERROR(INDIRECT(ET10),\"\")","v":"ST-00309-01-01"},1,null,null,null,null,null,null,{"$f":"IFERROR(INDIRECT(FB10),\"\")","v":""},null,null,null,null,null,null,null,{"$f":"IFERROR(INDIRECT(FJ10),\"\")","v":""},null,null,null,null,"Algemene_activiteit","coordinatie werken - voorbereiding","Fixed",{"$f":"IFERROR(INDIRECT(FR10),\"\")","v":"ST-00309-01-01"},3,null,"WVB week 9",null,null,null,null,{"$f":"IFERROR(INDIRECT(FZ10),\"\")","v":""},null,null,null,null,null,null,null,{"$f":"IFERROR(INDIRECT(GH10),\"\")","v":""},null,null,null,null,"Algemene_activiteit","coordinatie werken - voorbereiding","Fixed","ST-00309-01-01",3,null,"voorbereiding WM + overlopen RAMS",null,"Algemene_activiteit","administratie ","Fixed","ST-00309-01-01",3,null,"inplannen TNP met correcte codes",null,"preventatief_onderhoud","auxiliary power supply ","Variable",{"$f":"IFERROR(INDIRECT(HF10),\"\")","v":"ST-00309-02-01"},null,5,"monthly dieseltest met alarmen nadien",null,"Algemene_activiteit","coordinatie werken - uitvoering","Fixed",{"$f":"IFERROR(INDIRECT(HN10),\"\")","v":"ST-00309-01-01"},2]
[null,null,null,null,null,null,"",null,null,null,null,null,null,null,"",null,null,null,null,null,null,null,"",null,null,null,null,"Algemene_activiteit","handover project (labeling, verificatie AsBuilts, manuals, …)","Fixed","ST-00309-01-01",1.75,null,null,null,"Algemene_activiteit","administratie ","Fixed","ST-00309-01-01",2.75,null,null,null,"Algemene_activiteit","handover project (labeling, verificatie AsBuilts, manuals, …)","Variable","ST-00309-02-01",null,2,null,null,"Algemene_activiteit","coordinatie werken - uitvoering","Variable","ST-00309-02-01",null,1.5,null,null,null,null,null,"",null,null,null,null,null,null,null,"",null,null,null,null,null,null,null,"",null,null,null,null,"curatief_onderhoud","Building - site access and security","Variable","ST-00309-02-01",1.75,null,"check fence detection nav alarm",null,"Algemene_activiteit","veiligheidsopleidingen geven","Fixed",{"$f":"IFERROR(INDIRECT(CP11),\"\")","v":"ST-00309-01-01"},1.5,null,"Inducite Thermoco",null,"curatief_onderhoud","HV - Interface transformer","Variable",{"$f":"IFERROR(INDIRECT(CX11),\"\")","v":"ST-00309-02-01"},1.5,null,"drain oil TFO L3",null,"Algemene_activiteit","coordinatie werken - uitvoering","Fixed",{"$f":"IFERROR(INDIRECT(DF11),\"\")","v":"ST-00309-01-01"},2,null,"Coördinatie open punten project",null,null,null,null,{"$f":"IFERROR(INDIRECT(DN11),\"\")","v":""},null,null,null,null,null,null,null,{"$f":"IFERROR(INDIRECT(DV11),\"\")","v":""},null,null,null,null,null,null,null,"",null,null,null,"GIS MM/ TFO MM","preventief_onderhoud",null,"Fixed","ST-00309-01-01",2,null,null,"diesel","Algemene_activiteit","coordinatie werken - uitvoering","Fixed",{"$f":"IFERROR(INDIRECT(ET11),\"\")","v":"ST-00309-01-01"},2,null,null,null,null,null,null,{"$f":"IFERROR(INDIRECT(FB11),\"\")","v":""},null,null,null,null,null,null,null,{"$f":"IFERROR(INDIRECT(FJ11),\"\")","v":""},null,null,null,null,"Algemene_activiteit","administratie ","Fixed",{"$f":"IFERROR(INDIRECT(FR11),\"\")","v":"ST-00309-01-01"},1.5,null,null,null,null,null,null,{"$f":"IFERROR(INDIRECT(FZ11),\"\")","v":""},null,null,null,null,null,null,null,{"$f":"IFERROR(INDIRECT(GH11),\"\")","v":""},null,null,null,null,"Algemene_activiteit","administratie ","Fixed","ST-00309-01-01",1.75,null,"voorbereiding equipe",null,null,null,null,"",null,null,null,null,"Algemene_activiteit","administratie ","Fixed",{"$f":"IFERROR(INDIRECT(HF11),\"\")","v":"ST-00309-01-01"},2.75,null,null,null,"Algemene_activiteit","administratie ","Fixed",{"$f":"IFERROR(INDIRECT(HN11),\"\")","v":"ST-00309-01-01"},2.75]
[null,null,null,null,null,null,{"$f":"IFERROR(INDIRECT(F12),\"\")","v":""},null,null,null,null,null,null,null,"",null,null,null,null,null,null,null,"",null,null,null,null,"Algemene_activiteit","handover project (labeling, verificatie AsBuilts, manuals, …)","Variable","ST-00309-02-01",null,1.5,"support project Siemens",null,"Algemene_activiteit","handover project (labeling, verificatie AsBuilts, manuals, …)","Variable","ST-00309-02-01",null,1,null,null,null,null,null,"",null,null,null,null,"Algemene_activiteit","coordinatie werken - uitvoering","Fixed","ST-00309-01-01",1.75,null,null,null,null,null,null,"",null,null,null,null,null,null,null,"",null,null,null,null,null,null,null,"",null,null,null,null,"Algemene_activiteit","planning en coordinatie werken ","Meeting","ST-00309-01-03",2,null,"F2F","EPC-O&M","Algemene_activiteit","handover project (labeling, verificatie AsBuilts, manuals, …)","Meeting",{"$f":"IFERROR(INDIRECT(CP12),\"\")","v":"ST-00309-01-03"},2,null,null,null,"Algemene_activiteit","planning en coordinatie werken ","Fixed",{"$f":"IFERROR(INDIRECT(CX12),\"\")","v":"ST-00309-01-01"},3.25,null,null,null,null,null,null,{"$f":"IFERROR(INDIRECT(DF12),\"\")","v":""},null,null,null,null,null,null,null,{"$f":"IFERROR(INDIRECT(DN12),\"\")","v":""},null,null,null,null,null,null,null,{"$f":"IFERROR(INDIRECT(DV12),\"\")","v":""},null,null,null,null,null,null,null,"",null,null,null,null,"Algemene_activiteit","administratie ","Fixed","ST-00309-01-01",2.75,null,null,null,"Algemene_activiteit","coordinatie werken - voorbereiding","Fixed",{"$f":"IFERROR(INDIRECT(ET12),\"\")","v":"ST-00309-01-01"},1,null,null,null,null,null,null,{"$f":"IFERROR(INDIRECT(FB12),\"\")","v":""},null,null,null,null,null,null,null,{"$f":"IFERROR(INDIRECT(FJ12),\"\")","v":""},null,null,null,null,null,null,null,{"$f":"IFERROR(INDIRECT(FR12),\"\")","v":""},null,null,null,null,null,null,null,{"$f":"IFERROR(INDIRECT(FZ12),\"\")","v":""},null,null,null,null,null,null,null,{"$f":"IFERROR(INDIRECT(GH12),\"\")","v":""},null,null,null,null,null,null,null,"",null,null,null,null,null,null,null,"",null,null,null,null,null,null,null,{"$f":"IFERROR(INDIRECT(HF12),\"\")","v":""},null,null,null,null,null,null,null,{"$f":"IFERROR(INDIRECT(HN12),\"\")","v":""}]
[null,null,null,null,null,null,{"$f":"IFERROR(INDIRECT(F13),\"\")","v":""},null,null,null,null,null,null,null,{"$f":"IFERROR(INDIRECT(N13),\"\")","v":""},null,null,null,null,null,null,null,{"$f":"IFERROR(INDIRECT(V13),\"\")","v":""},null,null,null,null,null,null,null,{"$f":"IFERROR(INDIRECT(AD13),\"\")","v":""},null,null,null,null,null,null,null,{"$f":"IFERROR(INDIRECT(AL13),\"\")","v":""},null,null,null,null,null,null,null,{"$f":"IFERROR(INDIRECT(AT13),\"\")","v":""},null,null,null,null,null,null,null,{"$f":"IFERROR(INDIRECT(BB13),\"\")","v":""},null,null,null,null,null,null,null,{"$f":"IFERROR(INDIRECT(BJ13),\"\")","v":""},null,null,null,null,null,null,null,{"$f":"IFERROR(INDIRECT(BR13),\"\")","v":""},null,null,null,null,null,null,null,{"$f":"IFERROR(INDIRECT(BZ13),\"\")","v":""},null,null,null,null,"Algemene_activiteit","coordinatie werken - uitvoering","Variable","ST-00309-02-01",1,null,"Sven","SF6 alarm","incident _preparedness_and_procedures",null,"Variable","ST-00309-02-01",2,2,"voorbereiding herstelling",null,"Algemene_activiteit","interventie wacht","Variable","ST-00309-02-01",null,2.5,"intruder system",null,null,null,null,"",null,null,null,null,null,null,null,"",null,null,null,null,null,null,null,"",null,null,null,null,null,null,null,{"$f":"IFERROR(INDIRECT(ED13),\"\")","v":""},null,null,null,null,null,null,null,{"$f":"IFERROR(INDIRECT(EL13),\"\")","v":""},null,null,null,null,"Algemene_activiteit","administratie ","Fixed","ST-00309-01-01",2.25,null,null,null,null,null,null,"",null,null,null,null,null,null,null,"",null,null,null,null,null,null,null,"",null,null,null,null,null,null,null,"",null,null,null,null,null,null,null,"",null,null,null,null,null,null,null,{"$f":"IFERROR(INDIRECT(GP13),\"\")","v":""},null,null,null,null,null,null,null,{"$f":"IFERROR(INDIRECT(GX13),\"\")","v":""},null,null,null,null,null,null,null,"",null,null,null,null,null,null,null,""]
[null,"C",null,"Algemene_activiteit","handover project (labeling, verificatie AsBuilts, manuals, …)","Fixed",{"$f":"IFERROR(INDIRECT(F14),\"\")","v":"ST-00309-01-01"},4,null,null,null,null,null,null,"",null,null,null,null,null,null,null,"",null,null,null,null,null,null,null,"",null,null,null,null,"curatief_onderhoud","C&P -  AC ","Fixed","ST-00309-01-01",2,null,null,null,"Algemene_activiteit","handover project (labeling, verificatie AsBuilts, manuals, …)","Fixed","ST-00309-01-01",6.75,null,null,null,"curatief_onderhoud","C&P -  AC ","Fixed","ST-00309-01-01",3,null,null,null,"curatief_onderhoud","C&P -  AC ","Fixed","ST-00309-01-01",1,null,null,null,null,null,null,"",null,null,null,null,null,null,null,"",null,null,null,null,null,null,null,"",null,null,null,"Oliestaalname","Algemene_activiteit",null,"Niet_Nemo_activiteit",{"$f":"IFERROR(INDIRECT(CP14),\"\")","v":"Elia-imp. Nummer"},7.75,null,null,"SF6 lek","curatief_onderhoud","HV - AC switchgear","Variable",{"$f":"IFERROR(INDIRECT(CX14),\"\")","v":"ST-00309-02-01"},null,2,null,null,"Algemene_activiteit","Incident analyse","Variable",{"$f":"IFERROR(INDIRECT(DF14),\"\")","v":"ST-00309-02-01"},2,null,"analyse op OTS",null,"Algemene_activiteit","handover project (labeling, verificatie AsBuilts, manuals, …)","Variable",{"$f":"IFERROR(INDIRECT(DN14),\"\")","v":"ST-00309-02-01"},7,null,"Algemene set-up site, IP telefonie,…",null,null,null,null,{"$f":"IFERROR(INDIRECT(DV14),\"\")","v":""},null,null,null,null,null,null,null,"",null,null,null,null,"Algemene_activiteit","interventie wacht","Variable","ST-00309-02-01",null,1.75,"fout inbraaksysteem",null,"Algemene_activiteit","coordinatie werken - uitvoering","Fixed",{"$f":"IFERROR(INDIRECT(ET14),\"\")","v":"ST-00309-01-01"},3.75,null,null,null,"curatief_onderhoud","Building - site access and security","Variable",{"$f":"IFERROR(INDIRECT(FB14),\"\")","v":"ST-00309-02-01"},2.5,2.5,"problemen met inbraakalarm/ schuifpoort",null,"Algemene_activiteit","coordinatie werken - uitvoering","Fixed",{"$f":"IFERROR(INDIRECT(FJ14),\"\")","v":"ST-00309-01-01"},2,1,"Organisatie site, toegang, …",null,"Algemene_activiteit","handover project (labeling, verificatie AsBuilts, manuals, …)","Fixed",{"$f":"IFERROR(INDIRECT(FR14),\"\")","v":"ST-00309-01-01"},4,null,"verificatie werking CWC, HVAC",null,null,null,null,{"$f":"IFERROR(INDIRECT(FZ14),\"\")","v":""},null,null,null,null,null,null,null,{"$f":"IFERROR(INDIRECT(GH14),\"\")","v":""},null,null,null,null,null,null,null,"",null,null,null,null,null,null,null,"",null,null,null,null,null,null,null,{"$f":"IFERROR(INDIRECT(HF14),\"\")","v":""},null,null,null,null,null,null,null,{"$f":"IFERROR(INDIRECT(HN14),\"\")","v":""}]
[null,null,null,"Algemene_activiteit","schakelen en veiligstellen ","Fixed","ST-00309-01-01",2,null,null,null,null,null,null,"",null,null,null,null,null,null,null,"",null,null,null,null,null,null,null,"",null,null,null,null,"preventatief_onderhoud","CWC","Fixed","ST-00309-01-01",1,null,null,null,"Algemene_activiteit","coordinatie werken - voorbereiding","Fixed","ST-00309-01-01",1,null,null,null,"curatief_onderhoud","Building - site access and security","Fixed","ST-00309-01-01",2,null,null,null,"Algemene_activiteit","administratie ","Fixed","ST-00309-01-01",4,null,null,null,null,null,null,"",null,null,null,null,null,null,null,"",null,null,null,null,null,null,null,"",null,null,null,null,null,null,null,{"$f":"IFERROR(INDIRECT(CP15),\"\")","v":""},null,null,null,null,null,null,null,{"$f":"IFERROR(INDIRECT(CX15),\"\")","v":""},null,null,null,null,"Algemene_activiteit","handover project (labeling, verificatie AsBuilts, manuals, …)","Fixed","ST-00309-01-01",2.75,null,"contorle OTS op juistheid",null,null,null,null,{"$f":"IFERROR(INDIRECT(DN15),\"\")","v":""},null,null,null,null,null,null,null,{"$f":"IFERROR(INDIRECT(DV15),\"\")","v":""},null,null,null,null,null,null,null,"",null,null,null,null,null,null,null,null,null,null,null,null,"Algemene_activiteit","interventie wacht","Variable","ST-00309-02-01",1,null,"afhandeling interventie wacht",null,"Algemene_activiteit","coordinatie werken - uitvoering","Fixed",{"$f":"IFERROR(INDIRECT(FB15),\"\")","v":"ST-00309-01-01"},3,null,"WVG, HW, toegang site",null,"curatief_onderhoud","Building - site access and security","Variable",{"$f":"IFERROR(INDIRECT(FJ15),\"\")","v":"ST-00309-02-01"},2,null,"fout inbraakalarm",null,"Algemene_activiteit","algemene technische opleidingen krijgen (hoogwerker, stelling ,…)","Fixed","ST-00309-01-01",2,null,"wegwijsmaken Brecht",null,null,null,null,{"$f":"IFERROR(INDIRECT(FZ15),\"\")","v":""},null,null,null,null,null,null,null,{"$f":"IFERROR(INDIRECT(GH15),\"\")","v":""},null,null,null,null,null,null,null,"",null,null,null,null,null,null,null,"",null,null,null,null,null,null,null,{"$f":"IFERROR(INDIRECT(HF15),\"\")","v":""},null,null,null,null,null,null,null,{"$f":"IFERROR(INDIRECT(HN15),\"\")","v":""}]
[null,null,null,"curatief_onderhoud","C&P -  AC ","Variable","ST-00309-02-01",1,2,null,null,null,null,null,"",null,null,null,null,null,null,null,"",null,null,null,null,null,null,null,"",null,null,null,null,"Algemene_activiteit","handover project (labeling, verificatie AsBuilts, manuals, …)","Fixed","ST-00309-01-01",4.75,null,null,null,"Algemene_activiteit","handover project (labeling, verificatie AsBuilts, manuals, …)","Variable","ST-00309-02-01",1,null,null,null,"Algemene_activiteit","handover project (labeling, verificatie AsBuilts, manuals, …)","Fixed","ST-00309-01-01",2.75,null,null,null,"Algemene_activiteit","handover project (labeling, verificatie AsBuilts, manuals, …)","Fixed","ST-00309-01-01",2,null,null,null,null,null,null,"",null,null,null,null,null,null,null,"",null,null,null,null,null,null,null,"",null,null,null,null,null,null,null,{"$f":"IFERROR(INDIRECT(CP16),\"\")","v":""},null,null,null,null,null,null,null,{"$f":"IFERROR(INDIRECT(CX16),\"\")","v":""},null,null,null,null,"Algemene_activiteit","handover project (labeling, verificatie AsBuilts, manuals, …)","Fixed","ST-00309-01-01",3,null,"IP telfonie,…",null,null,null,null,{"$f":"IFERROR(INDIRECT(DN16),\"\")","v":""},null,null,null,null,null,null,null,{"$f":"IFERROR(INDIRECT(DV16),\"\")","v":""},null,null,null,null,null,null,null,"",null,null,null,null,null,null,null,"",null,null,null,null,"Algemene_activiteit","Incident analyse","Variable",{"$f":"IFERROR(INDIRECT(ET16),\"\")","v":"ST-00309-02-01"},3,null,"analyse schakeling",null,"Algemene_activiteit","administratie ","Fixed",{"$f":"IFERROR(INDIRECT(FB16),\"\")","v":"ST-00309-01-01"},2.25,null,null,null,"Algemene_activiteit","algemene technische opleidingen krijgen (hoogwerker, stelling ,…)","Fixed",{"$f":"IFERROR(INDIRECT(FJ16),\"\")","v":"ST-00309-01-01"},2,null,"wegwijsmaken Brecht",null,"Algemene_activiteit","administratie ","Fixed",{"$f":"IFERROR(INDIRECT(FR16),\"\")","v":"ST-00309-01-01"},1,null,"Overlopen timesheet, gevolgde werken",null,null,null,null,{"$f":"IFERROR(INDIRECT(FZ16),\"\")","v":""},null,null,null,null,null,null,null,{"$f":"IFERROR(INDIRECT(GH16),\"\")","v":""},null,null,null,null,null,null,null,"",null,null,null,null,null,null,null,"",null,null,null,null,null,null,null,{"$f":"IFERROR(INDIRECT(HF16),\"\")","v":""},null,null,null,null,null,null,null,{"$f":"IFERROR(INDIRECT(HN16),\"\")","v":""}]
[null,null,null,null,null,null,"",null,null,null,null,null,null,null,"",null,null,null,null,null,null,null,"",null,null,null,null,null,null,null,"",null,null,null,null,"Algemene_activiteit","handover project (labeling, verificatie AsBuilts, manuals, …)","Variable","ST-00309-02-01",1,null,null,null,null,null,null,"",null,null,null,null,null,null,null,"",null,null,null,null,"Algemene_activiteit","handover project (labeling, verificatie AsBuilts, manuals, …)","Variable","ST-00309-02-01",null,1,null,null,null,null,null,"",null,null,null,null,null,null,null,"",null,null,null,null,null,null,null,"",null,null,null,null,null,null,null,{"$f":"IFERROR(INDIRECT(CP17),\"\")","v":""},null,null,null,null,null,null,null,{"$f":"IFERROR(INDIRECT(CX17),\"\")","v":""},null,null,null,null,"Algemene_activiteit","coordinatie werken - uitvoering","Variable",{"$f":"IFERROR(INDIRECT(DF17),\"\")","v":"ST-00309-02-01"},1,null,"afsluiten site",null,null,null,null,{"$f":"IFERROR(INDIRECT(DN17),\"\")","v":""},null,null,null,null,null,null,null,{"$f":"IFERROR(INDIRECT(DV17),\"\")","v":""},null,null,null,null,null,null,null,"",null,null,null,null,null,null,null,"",null,null,null,null,"Algemene_activiteit","coordinatie werken - uitvoering","Variable",{"$f":"IFERROR(INDIRECT(ET17),\"\")","v":"ST-00309-02-01"},null,1,"Afsluiten site, alarm wapenen,…",null,null,null,null,{"$f":"IFERROR(INDIRECT(FB17),\"\")","v":""},null,null,null,null,"Algemene_activiteit","handover project (labeling, verificatie AsBuilts, manuals, …)","Fixed",{"$f":"IFERROR(INDIRECT(FJ17),\"\")","v":"ST-00309-01-01"},1.75,null,null,null,"Algemene_activiteit","schakelen en veiligstellen ","Variable",{"$f":"IFERROR(INDIRECT(FR17),\"\")","v":"ST-00309-02-01"},null,2.5,"Aanwezigheid site nav CWC probleem UK",null,null,null,null,{"$f":"IFERROR(INDIRECT(FZ17),\"\")","v":""},null,null,null,null,null,null,null,{"$f":"IFERROR(INDIRECT(GH17),\"\")","v":""},null,null,null,null,null,null,null,"",null,null,null,null,null,null,null,"",null,null,null,null,null,null,null,{"$f":"IFERROR(INDIRECT(HF17),\"\")","v":""},null,null,null,null,null,null,null,{"$f":"IFERROR(INDIRECT(HN17),\"\")","v":""}]
[null,null,null,null,null,null,"",null,null,null,null,null,null,null,"",null,null,null,null,null,null,null,"",null,null,null,null,null,null,null,"",null,null,null,null,null,null,null,"",null,null,null,null,null,null,null,"",null,null,null,null,null,null,null,"",null,null,null,null,null,null,null,"",null,null,null,null,null,null,null,"",null,null,null,null,null,null,null,"",null,null,null,null,null,null,null,"",null,null,null,null,null,null,null,{"$f":"IFERROR(INDIRECT(CP18),\"\")","v":""},null,null,null,null,null,null,null,{"$f":"IFERROR(INDIRECT(CX18),\"\")","v":""},null,null,null,null,null,null,null,{"$f":"IFERROR(INDIRECT(DF18),\"\")","v":""},null,null,null,null,null,null,null,{"$f":"IFERROR(INDIRECT(DN18),\"\")","v":""},null,null,null,null,null,null,null,{"$f":"IFERROR(INDIRECT(DV18),\"\")","v":""},null,null,null,null,null,null,null,"",null,null,null,null,null,null,null,"",null,null,null,null,null,null,null,{"$f":"IFERROR(INDIRECT(ET18),\"\")","v":""},null,null,null,null,null,null,null,{"$f":"IFERROR(INDIRECT(FB18),\"\")","v":""},null,null,null,null,null,null,null,{"$f":"IFERROR(INDIRECT(FJ18),\"\")","v":""},null,null,null,null,null,null,null,{"$f":"IFERROR(INDIRECT(FR18),\"\")","v":""},null,null,null,null,null,null,null,{"$f":"IFERROR(INDIRECT(FZ18),\"\")","v":""},null,null,null,null,null,null,null,{"$f":"IFERROR(INDIRECT(GH18),\"\")","v":""},null,null,null,null,null,null,null,"",null,null,null,null,null,null,null,"",null,null,null,null,null,null,null,{"$f":"IFERROR(INDIRECT(HF18),\"\")","v":""},null,null,null,null,null,null,null,{"$f":"IFERROR(INDIRECT(HN18),\"\")","v":""}]
[null,"D",null,"Algemene_activiteit","handover project (labeling, verificatie AsBuilts, manuals, …)","Fixed","ST-00309-01-01",3,null,null,null,null,null,null,"",null,null,null,null,null,null,null,"",null,null,null,null,null,null,null,"",null,null,null,null,null,null,null,"",null,null,null,null,null,null,null,"",null,null,null,null,null,null,null,"",null,null,null,null,null,null,null,"",null,null,null,null,null,null,null,"",null,null,null,null,null,null,null,"",null,null,null,"Fan outdoor cooler","Algemene_activiteit","coordinatie werken - voorbereiding","Fixed",{"$f":"IFERROR(INDIRECT(CH19),\"\")","v":"ST-00309-01-01"},3,null,null,"IT-elia","Algemene_activiteit","coordinatie werken - uitvoering","Fixed",{"$f":"IFERROR(INDIRECT(CP19),\"\")","v":"ST-00309-01-01"},1.5,null,null,null,null,null,null,{"$f":"IFERROR(INDIRECT(CX19),\"\")","v":""},null,null,null,null,"Algemene_activiteit","Incident analyse","Variable",{"$f":"IFERROR(INDIRECT(DF19),\"\")","v":"ST-00309-02-01"},2,null,"analyse op OTS",null,"Algemene_activiteit","coordinatie werken - uitvoering","Fixed","ST-00309-01-01",3.25,null,"begeleiding Engie",null,null,null,null,{"$f":"IFERROR(INDIRECT(DV19),\"\")","v":""},null,null,null,null,null,null,null,"",null,null,null,null,null,null,null,"",null,null,null,null,null,null,null,{"$f":"IFERROR(INDIRECT(ET19),\"\")","v":""},null,null,null,null,null,null,null,{"$f":"IFERROR(INDIRECT(FB19),\"\")","v":""},null,null,null,null,null,null,null,{"$f":"IFERROR(INDIRECT(FJ19),\"\")","v":""},null,null,null,null,null,null,null,{"$f":"IFERROR(INDIRECT(FR19),\"\")","v":""},null,null,null,null,null,null,null,{"$f":"IFERROR(INDIRECT(FZ19),\"\")","v":""},null,null,null,null,null,null,null,{"$f":"IFERROR(INDIRECT(GH19),\"\")","v":""},null,null,null,null,null,null,null,"",null,null,null,null,null,null,null,"",null,null,null,null,null,null,null,{"$f":"IFERROR(INDIRECT(HF19),\"\")","v":""},null,null,null,null,null,null,null,{"$f":"IFERROR(INDIRECT(HN19),\"\")","v":""}]
[null,null,null,"Algemene_activiteit","schakelen en veiligstellen ","Fixed","ST-00309-01-01",2,null,null,null,null,null,null,"",null,null,null,null,null,null,null,"",null,null,null,null,null,null,null,"",null,null,null,null,null,null,null,"",null,null,null,null,null,null,null,"",null,null,null,null,null,null,null,"",null,null,null,null,null,null,null,"",null,null,null,null,null,null,null,"",null,null,null,null,null,null,null,"",null,null,null,"Set-up kitchen","curatief_onderhoud","Building, terain and other building services","Fixed",{"$f":"IFERROR(INDIRECT(CH20),\"\")","v":"ST-00309-01-01"},1,null,"Wisselen warm/koud water","herstellen fan cooler","Algemene_activiteit","coordinatie werken - uitvoering","Fixed",{"$f":"IFERROR(INDIRECT(CP20),\"\")","v":"ST-00309-01-01"},3,null,null,null,null,null,null,{"$f":"IFERROR(INDIRECT(CX20),\"\")","v":""},null,null,null,null,"Algemene_activiteit","handover project (labeling, verificatie AsBuilts, manuals, …)","Fixed",{"$f":"IFERROR(INDIRECT(DF20),\"\")","v":"ST-00309-01-01"},2.75,null,"contorle OTS op juistheid",null,"Algemene_activiteit","peterschap post ","Fixed","ST-00309-01-01",1.75,null,"organistatie sleutels",null,null,null,null,{"$f":"IFERROR(INDIRECT(DV20),\"\")","v":""},null,null,null,null,null,null,null,"",null,null,null,null,null,null,null,"",null,null,null,null,null,null,null,{"$f":"IFERROR(INDIRECT(ET20),\"\")","v":""},null,null,null,null,null,null,null,{"$f":"IFERROR(INDIRECT(FB20),\"\")","v":""},null,null,null,null,null,null,null,{"$f":"IFERROR(INDIRECT(FJ20),\"\")","v":""},null,null,null,null,null,null,null,{"$f":"IFERROR(INDIRECT(FR20),\"\")","v":""},null,null,null,null,null,null,null,{"$f":"IFERROR(INDIRECT(FZ20),\"\")","v":""},null,null,null,null,null,null,null,{"$f":"IFERROR(INDIRECT(GH20),\"\")","v":""},null,null,null,null,null,null,null,"",null,null,null,null,null,null,null,"",null,null,null,null,null,null,null,{"$f":"IFERROR(INDIRECT(HF20),\"\")","v":""},null,null,null,null,null,null,null,{"$f":"IFERROR(INDIRECT(HN20),\"\")","v":""}]
[null,null,null,"curatief_onderhoud","C&P -  AC ","Variable","ST-00309-02-01",1,2,null,null,null,null,null,"",null,null,null,null,null,null,null,"",null,null,null,null,null,null,null,"",null,null,null,null,null,null,null,"",null,null,null,null,null,null,null,"",null,null,null,null,null,null,null,"",null,null,null,null,null,null,null,"",null,null,null,null,null,null,null,"",null,null,null,null,null,null,null,"",null,null,null,"intruder system","Algemene_activiteit","Incident analyse","Variable",{"$f":"IFERROR(INDIRECT(CH21),\"\")","v":"ST-00309-02-01"},2.5,null,null,"Fire protection","Algemene_activiteit","coordinatie werken - uitvoering","Fixed",{"$f":"IFERROR(INDIRECT(CP21),\"\")","v":"ST-00309-01-01"},2,null,null,null,null,null,null,{"$f":"IFERROR(INDIRECT(CX21),\"\")","v":""},null,null,null,null,"Algemene_activiteit","handover project (labeling, verificatie AsBuilts, manuals, …)","Fixed",{"$f":"IFERROR(INDIRECT(DF21),\"\")","v":"ST-00309-01-01"},3,null,"IP telfonie,…",null,"Algemene_activiteit","coordinatie werken - voorbereiding","Niet_Nemo_activiteit",{"$f":"IFERROR(INDIRECT(DN21),\"\")","v":"Elia-imp. Nummer"},1,null,"WVB Elia",null,null,null,null,{"$f":"IFERROR(INDIRECT(DV21),\"\")","v":""},null,null,null,null,null,null,null,"",null,null,null,null,null,null,null,"",null,null,null,null,null,null,null,{"$f":"IFERROR(INDIRECT(ET21),\"\")","v":""},null,null,null,null,null,null,null,{"$f":"IFERROR(INDIRECT(FB21),\"\")","v":""},null,null,null,null,null,null,null,{"$f":"IFERROR(INDIRECT(FJ21),\"\")","v":""},null,null,null,null,null,null,null,{"$f":"IFERROR(INDIRECT(FR21),\"\")","v":""},null,null,null,null,null,null,null,{"$f":"IFERROR(INDIRECT(FZ21),\"\")","v":""},null,null,null,null,null,null,null,{"$f":"IFERROR(INDIRECT(GH21),\"\")","v":""},null,null,null,null,null,null,null,"",null,null,null,null,null,null,null,"",null,null,null,null,null,null,null,{"$f":"IFERROR(INDIRECT(HF21),\"\")","v":""},null,null,null,null,null,null,null,{"$f":"IFERROR(INDIRECT(HN21),\"\")","v":""}]
[null,null,null,"curatief_onderhoud","HVAC Building & airco","Variable","ST-00309-02-01",1,null,null,null,null,null,null,"",null,null,null,null,null,null,null,"",null,null,null,null,null,null,null,"",null,null,null,null,null,null,null,"",null,null,null,null,null,null,null,"",null,null,null,null,null,null,null,"",null,null,null,null,null,null,null,"",null,null,null,null,null,null,null,"",null,null,null,null,null,null,null,"",null,null,null,"Voorbereiding Elia",null,null,"Niet_Nemo_activiteit",{"$f":"IFERROR(INDIRECT(CH22),\"\")","v":"Elia-imp. Nummer"},1.25,null,null,null,"Algemene_activiteit","peterschap post ","Fixed",{"$f":"IFERROR(INDIRECT(CP22),\"\")","v":"ST-00309-01-01"},1.25,null,"Algemene operationele taken.",null,null,null,null,{"$f":"IFERROR(INDIRECT(CX22),\"\")","v":""},null,null,null,null,null,null,null,{"$f":"IFERROR(INDIRECT(DF22),\"\")","v":""},null,null,null,null,"Algemene_activiteit",null,"Niet_Nemo_activiteit",{"$f":"IFERROR(INDIRECT(DN22),\"\")","v":"Elia-imp. Nummer"},1,null,"verplaatsing",null,null,null,null,{"$f":"IFERROR(INDIRECT(DV22),\"\")","v":""},null,null,null,null,null,null,null,"",null,null,null,null,null,null,null,"",null,null,null,null,null,null,null,{"$f":"IFERROR(INDIRECT(ET22),\"\")","v":""},null,null,null,null,null,null,null,{"$f":"IFERROR(INDIRECT(FB22),\"\")","v":""},null,null,null,null,null,null,null,{"$f":"IFERROR(INDIRECT(FJ22),\"\")","v":""},null,null,null,null,null,null,null,{"$f":"IFERROR(INDIRECT(FR22),\"\")","v":""},null,null,null,null,null,null,null,{"$f":"IFERROR(INDIRECT(FZ22),\"\")","v":""},null,null,null,null,null,null,null,{"$f":"IFERROR(INDIRECT(GH22),\"\")","v":""},null,null,null,null,null,null,null,"",null,null,null,null,null,null,null,"",null,null,null,null,null,null,null,{"$f":"IFERROR(INDIRECT(HF22),\"\")","v":""},null,null,null,null,null,null,null,{"$f":"IFERROR(INDIRECT(HN22),\"\")","v":""}]
[null,null,null,null,null,null,"",null,null,null,null,null,null,null,"",null,null,null,null,null,null,null,"",null,null,null,null,null,null,null,"",null,null,null,null,null,null,null,"",null,null,null,null,null,null,null,"",null,null,null,null,null,null,null,"",null,null,null,null,null,null,null,"",null,null,null,null,null,null,null,"",null,null,null,null,null,null,null,"",null,null,null,null,null,null,null,{"$f":"IFERROR(INDIRECT(CH23),\"\")","v":""},null,null,null,null,"Algemene_activiteit","coordinatie werken - voorbereiding","Variable",{"$f":"IFERROR(INDIRECT(CP23),\"\")","v":"ST-00309-02-01"},null,0.5,"voorbereiding TFO L3",null,null,null,null,{"$f":"IFERROR(INDIRECT(CX23),\"\")","v":""},null,null,null,null,null,null,null,{"$f":"IFERROR(INDIRECT(DF23),\"\")","v":""},null,null,null,null,null,null,null,{"$f":"IFERROR(INDIRECT(DN23),\"\")","v":""},null,null,null,null,null,null,null,{"$f":"IFERROR(INDIRECT(DV23),\"\")","v":""},null,null,null,null,null,null,null,"",null,null,null,null,null,null,null,"",null,null,null,null,null,null,null,{"$f":"IFERROR(INDIRECT(ET23),\"\")","v":""},null,null,null,null,null,null,null,{"$f":"IFERROR(INDIRECT(FB23),\"\")","v":""},null,null,null,null,null,null,null,{"$f":"IFERROR(INDIRECT(FJ23),\"\")","v":""},null,null,null,null,null,null,null,{"$f":"IFERROR(INDIRECT(FR23),\"\")","v":""},null,null,null,null,null,null,null,{"$f":"IFERROR(INDIRECT(FZ23),\"\")","v":""},null,null,null,null,null,null,null,{"$f":"IFERROR(INDIRECT(GH23),\"\")","v":""},null,null,null,null,null,null,null,"",null,null,null,null,null,null,null,"",null,null,null,null,null,null,null,{"$f":"IFERROR(INDIRECT(HF23),\"\")","v":""},null,null,null,null,null,null,null,{"$f":"IFERROR(INDIRECT(HN23),\"\")","v":""}]
[null,"E",null,"Algemene_activiteit","handover project (labeling, verificatie AsBuilts, manuals, …)","Fixed","ST-00309-01-01",5,null,null,null,null,null,null,"",null,null,null,null,null,null,null,"",null,null,null,null,"Algemene_activiteit","coordinatie werken - voorbereiding","Fixed","ST-00309-01-01",2,null,null,null,"Algemene_activiteit","handover project (labeling, verificatie AsBuilts, manuals, …)","Fixed","ST-00309-01-01",4.75,null,null,null,"Algemene_activiteit","schakelen en veiligstellen ","Niet_Nemo_activiteit",{"$f":"IFERROR(INDIRECT(AT24),\"\")","v":"Elia-imp. Nummer"},null,null,null,null,"Algemene_activiteit","coordinatie werken - voorbereiding","Fixed",{"$f":"IFERROR(INDIRECT(BB24),\"\")","v":"ST-00309-01-01"},1,null,null,null,"Algemene_activiteit","administratie ","Fixed",{"$f":"IFERROR(INDIRECT(BJ24),\"\")","v":"ST-00309-01-01"},1,null,null,null,null,null,null,"",null,null,null,null,null,null,null,"",null,null,null,null,null,null,null,{"$f":"IFERROR(INDIRECT(CH24),\"\")","v":""},null,null,null,null,null,null,null,{"$f":"IFERROR(INDIRECT(CP24),\"\")","v":""},null,null,null,null,null,null,null,{"$f":"IFERROR(INDIRECT(CX24),\"\")","v":""},null,null,null,null,null,null,null,{"$f":"IFERROR(INDIRECT(DF24),\"\")","v":""},null,null,null,null,null,null,null,{"$f":"IFERROR(INDIRECT(DN24),\"\")","v":""},null,null,null,null,null,null,null,{"$f":"IFERROR(INDIRECT(DV24),\"\")","v":""},null,null,null,null,null,null,null,"",null,null,null,null,null,null,null,"",null,null,null,null,null,null,null,{"$f":"IFERROR(INDIRECT(ET24),\"\")","v":""},null,null,null,null,null,null,null,{"$f":"IFERROR(INDIRECT(FB24),\"\")","v":""},null,null,null,"Opname tellers voor AM","preventatief_onderhoud",null,"Fixed",{"$f":"IFERROR(INDIRECT(FJ24),\"\")","v":"ST-00309-01-01"},2,null,null,null,"Algemene_activiteit","schakelen en veiligstellen ","Niet_Nemo_activiteit",{"$f":"IFERROR(INDIRECT(FR24),\"\")","v":"Elia-imp. Nummer"},2.5,null,"Schakelen 150-385",null,null,null,null,{"$f":"IFERROR(INDIRECT(FZ24),\"\")","v":""},null,null,null,null,null,null,null,{"$f":"IFERROR(INDIRECT(GH24),\"\")","v":""},null,null,null,null,null,null,null,"",null,null,null,null,null,null,null,"",null,null,null,null,null,null,null,{"$f":"IFERROR(INDIRECT(HF24),\"\")","v":""},null,null,null,null,null,null,null,{"$f":"IFERROR(INDIRECT(HN24),\"\")","v":""}]
[null,null,null,"Algemene_activiteit","schakelen en veiligstellen ","Fixed","ST-00309-01-01",2,null,null,null,null,null,null,"",null,null,null,null,null,null,null,{"$f":"IFERROR(INDIRECT(V25),\"\")","v":""},null,null,null,null,"Algemene_activiteit","handover project (labeling, verificatie AsBuilts, manuals, …)","Fixed",{"$f":"IFERROR(INDIRECT(AD25),\"\")","v":"ST-00309-01-01"},5.75,null,null,null,"Algemene_activiteit","coordinatie werken - uitvoering","Fixed",{"$f":"IFERROR(INDIRECT(AL25),\"\")","v":"ST-00309-01-01"},2,null,null,null,"Algemene_activiteit","coordinatie werken - voorbereiding","Fixed","ST-00309-01-01",1,null,null,null,"curatief_onderhoud","Building - site access and security","Fixed","ST-00309-01-01",6.75,null,null,null,"Algemene_activiteit","coordinatie werken - voorbereiding","Fixed","ST-00309-01-01",2,null,null,null,null,null,null,{"$f":"IFERROR(INDIRECT(BR25),\"\")","v":""},null,null,null,null,null,null,null,{"$f":"IFERROR(INDIRECT(BZ25),\"\")","v":""},null,null,null,null,null,null,null,"",null,null,null,null,null,null,null,"",null,null,null,null,null,null,null,"",null,null,null,null,null,null,null,"",null,null,null,null,null,null,null,"",null,null,null,null,null,null,null,"",null,null,null,null,null,null,null,{"$f":"IFERROR(INDIRECT(ED25),\"\")","v":""},null,null,null,null,null,null,null,{"$f":"IFERROR(INDIRECT(EL25),\"\")","v":""},null,null,null,null,null,null,null,"",null,null,null,null,null,null,null,"",null,null,null,"Begeleiding JPS","Algemene_activiteit","handover project (labeling, verificatie AsBuilts, manuals, …)","Fixed","ST-00309-01-01",1.5,null,null,null,"Algemene_activiteit","coordinatie werken - uitvoering","Fixed","ST-00309-01-01",2,null,null,null,null,null,null,"",null,null,null,null,null,null,null,"",null,null,null,null,null,null,null,{"$f":"IFERROR(INDIRECT(GP25),\"\")","v":""},null,null,null,null,null,null,null,{"$f":"IFERROR(INDIRECT(GX25),\"\")","v":""},null,null,null,null,null,null,null,"",null,null,null,null,null,null,null,""]
[null,null,null,"curatief_onderhoud","C&P -  AC ","Variable",{"$f":"IFERROR(INDIRECT(F26),\"\")","v":"ST-00309-02-01"},1,2,null,null,null,null,null,"",null,null,null,null,null,null,null,"",null,null,null,null,"Algemene_activiteit","handover project (labeling, verificatie AsBuilts, manuals, …)","Variable","ST-00309-02-01",1,null,null,null,"preventatief_onderhoud","auxiliary power supply ","Fixed","ST-00309-01-01",1,null,null,null,"Algemene_activiteit","handover project (labeling, verificatie AsBuilts, manuals, …)","Fixed","ST-00309-01-01",3,null,null,null,null,null,null,{"$f":"IFERROR(INDIRECT(BB26),\"\")","v":""},null,null,null,null,"Algemene_activiteit","handover project (labeling, verificatie AsBuilts, manuals, …)","Fixed","ST-00309-01-01",4,null,null,null,null,null,null,"",null,null,null,null,null,null,null,"",null,null,null,null,null,null,null,"",null,null,null,null,null,null,null,"",null,null,null,null,null,null,null,"",null,null,null,null,null,null,null,"",null,null,null,null,null,null,null,"",null,null,null,null,null,null,null,"",null,null,null,null,null,null,null,"",null,null,null,null,null,null,null,"",null,null,null,null,null,null,null,"",null,null,null,null,null,null,null,"",null,null,null,"Herstelling schuifpoort","curatief_onderhoud","Building - site access and security","Variable","ST-00309-02-01",1,null,null,null,"Algemene_activiteit","handover project (labeling, verificatie AsBuilts, manuals, …)","Fixed","ST-00309-01-01",2.5,null,null,null,null,null,null,"",null,null,null,null,null,null,null,"",null,null,null,null,null,null,null,"",null,null,null,null,null,null,null,"",null,null,null,null,null,null,null,"",null,null,null,null,null,null,null,""]
[null,null,null,null,null,null,"",null,null,null,null,null,null,null,"",null,null,null,null,null,null,null,"",null,null,null,null,null,null,null,"",null,null,null,null,"Algemene_activiteit","handover project (labeling, verificatie AsBuilts, manuals, …)","Variable","ST-00309-02-01",null,0.5,null,null,null,null,null,"",null,null,null,null,null,null,null,"",null,null,null,null,"Algemene_activiteit","schakelen en veiligstellen ","Variable","ST-00309-02-01",0.5,null,null,null,null,null,null,"",null,null,null,null,null,null,null,"",null,null,null,null,null,null,null,"",null,null,null,null,null,null,null,"",null,null,null,null,null,null,null,"",null,null,null,null,null,null,null,"",null,null,null,null,null,null,null,"",null,null,null,null,null,null,null,"",null,null,null,null,null,null,null,"",null,null,null,null,null,null,null,"",null,null,null,null,null,null,null,"",null,null,null,null,null,null,null,"",null,null,null,"Heropstart Alarminstallatie","curatief_onderhoud","Building - site access and security","Variable","ST-00309-02-01",1,null,null,null,null,null,null,"",null,null,null,null,null,null,null,"",null,null,null,null,null,null,null,"",null,null,null,null,null,null,null,"",null,null,null,null,null,null,null,"",null,null,null,null,null,null,null,"",null,null,null,null,null,null,null,""]
[null,null,null,null,null,null,"",null,null,null,null,null,null,null,"",null,null,null,null,null,null,null,"",null,null,null,null,null,null,null,"",null,null,null,null,null,null,null,"",null,null,null,null,null,null,null,"",null,null,null,null,null,null,null,"",null,null,null,null,null,null,null,{"$f":"IFERROR(INDIRECT(BJ28),\"\")","v":""},null,null,null,null,null,null,null,"",null,null,null,null,null,null,null,"",null,null,null,null,null,null,null,"",null,null,null,null,null,null,null,"",null,null,null,null,null,null,null,"",null,null,null,null,null,null,null,"",null,null,null,null,null,null,null,"",null,null,null,null,null,null,null,"",null,null,null,null,null,null,null,"",null,null,null,null,null,null,null,"",null,null,null,null,null,null,null,"",null,null,null,null,null,null,null,"",null,null,null,null,"Algemene_activiteit","handover project (labeling, verificatie AsBuilts, manuals, …)","Fixed","ST-00309-01-01",2.25,null,null,null,null,null,null,"",null,null,null,null,null,null,null,"",null,null,null,null,null,null,null,"",null,null,null,null,null,null,null,"",null,null,null,null,null,null,null,"",null,null,null,null,null,null,null,"",null,null,null,null,null,null,null,""]
[null,"F",null,null,null,null,"",null,null,null,null,null,null,null,"",null,null,null,null,null,null,null,"",null,null,null,null,null,null,null,"",null,null,null,null,null,null,null,"",null,null,null,null,null,null,null,{"$f":"IFERROR(INDIRECT(AT29),\"\")","v":""},null,null,null,null,null,null,null,"",null,null,null,null,null,null,null,"",null,null,null,null,null,null,null,"",null,null,null,null,null,null,null,"",null,null,null,null,null,null,null,"",null,null,null,null,null,null,null,"",null,null,null,null,null,null,null,"",null,null,null,null,null,null,null,"",null,null,null,null,null,null,null,"",null,null,null,null,null,null,null,"",null,null,null,null,null,null,null,"",null,null,null,"Introductie site","Algemene_activiteit","algemene technische opleidingen krijgen (hoogwerker, stelling ,…)","Fixed","ST-00309-01-01",7.75,null,null,null,"Algemene_activiteit","algemene technische opleidingen krijgen (hoogwerker, stelling ,…)","Fixed","ST-00309-01-01",6.75,null,null,null,"Algemene_activiteit","algemene technische opleidingen krijgen (hoogwerker, stelling ,…)","Fixed","ST-00309-01-01",5.25,null,null,"Opname tellers voor AM","preventatief_onderhoud",null,"Fixed",{"$f":"IFERROR(INDIRECT(FJ29),\"\")","v":"ST-00309-01-01"},2,null,null,null,"Algemene_activiteit","administratie ","Fixed","ST-00309-01-01",2,null,null,null,null,null,null,"",null,null,null,null,null,null,null,"",null,null,null,null,null,null,null,"",null,null,null,null,null,null,null,"",null,null,null,null,null,null,null,"",null,null,null,null,null,null,null,""]
[null,null,null,null,null,null,"",null,null,null,null,null,null,null,"",null,null,null,null,null,null,null,"",null,null,null,null,null,null,null,"",null,null,null,null,null,null,null,"",null,null,null,null,null,null,null,"",null,null,null,null,null,null,null,"",null,null,null,null,null,null,null,"",null,null,null,null,null,null,null,"",null,null,null,null,null,null,null,"",null,null,null,null,null,null,null,"",null,null,null,null,null,null,null,"",null,null,null,null,null,null,null,"",null,null,null,null,null,null,null,"",null,null,null,null,null,null,null,"",null,null,null,null,null,null,null,"",null,null,null,null,null,null,null,"",null,null,null,null,null,null,null,"",null,null,null,"MM diesel","preventatief_onderhoud","auxiliary power supply ","Fixed","ST-00309-01-01",1,null,null,null,"curatief_onderhoud","Building - site access and security","Variable","ST-00309-02-01",2.5,1,"problemen met inbraakalarm/ schuifpoort","Herstelling schuifpoort","curatief_onderhoud","Building - site access and security","Variable",{"$f":"IFERROR(INDIRECT(FJ30),\"\")","v":"ST-00309-02-01"},1,null,null,null,"Algemene_activiteit",null,"Niet_Nemo_activiteit","Elia-imp. Nummer",2,null,null,null,null,null,null,"",null,null,null,null,null,null,null,"",null,null,null,null,null,null,null,"",null,null,null,null,null,null,null,"",null,null,null,null,null,null,null,"",null,null,null,null,null,null,null,""]
[null,null,null,null,null,null,"",null,null,null,null,null,null,null,"",null,null,null,null,null,null,null,"",null,null,null,null,null,null,null,"",null,null,null,null,null,null,null,"",null,null,null,null,null,null,null,"",null,null,null,null,null,null,null,"",null,null,null,null,null,null,null,"",null,null,null,null,null,null,null,"",null,null,null,null,null,null,null,"",null,null,null,null,null,null,null,"",null,null,null,null,null,null,null,"",null,null,null,null,null,null,null,"",null,null,null,null,null,null,null,"",null,null,null,null,null,null,null,"",null,null,null,null,null,null,null,"",null,null,null,null,null,null,null,"",null,null,null,null,null,null,null,"",null,null,null,null,"Algemene_activiteit","coordinatie werken - uitvoering","Variable","ST-00309-02-01",null,1,"Afsluiten site, alarm wapenen,…",null,null,null,null,"",null,null,null,null,"Algemene_activiteit","algemene technische opleidingen krijgen (hoogwerker, stelling ,…)","Fixed","ST-00309-01-01",4.75,null,null,null,"Algemene_activiteit","algemene technische opleidingen krijgen (hoogwerker, stelling ,…)","Fixed","ST-00309-01-01",3,null,null,null,null,null,null,"",null,null,null,null,null,null,null,"",null,null,null,null,null,null,null,"",null,null,null,null,null,null,null,"",null,null,null,null,null,null,null,"",null,null,null,null,null,null,null,""]
[null,null,null,null,null,null,"",null,null,null,null,null,null,null,"",null,null,null,null,null,null,null,"",null,null,null,null,null,null,null,"",null,null,null,null,null,null,null,"",null,null,null,null,null,null,null,"",null,null,null,null,null,null,null,"",null,null,null,null,null,null,null,"",null,null,null,null,null,null,null,"",null,null,null,null,null,null,null,"",null,null,null,null,null,null,null,"",null,null,null,null,null,null,null,"",null,null,null,null,null,null,null,"",null,null,null,null,null,null,null,"",null,null,null,null,null,null,null,"",null,null,null,null,null,null,null,"",null,null,null,null,null,null,null,"",null,null,null,null,null,null,null,"",null,null,null,null,null,null,null,"",null,null,null,null,null,null,null,"",null,null,null,null,null,null,null,"",null,null,null,null,null,null,null,"",null,null,null,null,null,null,null,"",null,null,null,null,null,null,null,"",null,null,null,null,null,null,null,"",null,null,null,null,null,null,null,"",null,null,null,null,null,null,null,"",null,null,null,null,null,null,null,""]
[null,null,null,null,null,null,"",null,null,null,null,null,null,null,"",null,null,null,null,null,null,null,"",null,null,null,null,null,null,null,"",null,null,null,null,null,null,null,"",null,null,null,null,null,null,null,"",null,null,null,null,null,null,null,"",null,null,null,null,null,null,null,"",null,null,null,null,null,null,null,"",null,null,null,null,null,null,null,"",null,null,null,null,null,null,null,"",null,null,null,null,null,null,null,"",null,null,null,null,null,null,null,"",null,null,null,null,null,null,null,"",null,null,null,null,null,null,null,"",null,null,null,null,null,null,null,"",null,null,null,null,null,null,null,"",null,null,null,null,null,null,null,"",null,null,null,null,null,null,null,"",null,null,null,null,null,null,null,"",null,null,null,null,null,null,null,"",null,null,null,null,null,null,null,"",null,null,null,null,null,null,null,"",null,null,null,null,null,null,null,"",null,null,null,null,null,null,null,"",null,null,null,null,null,null,null,"",null,null,null,null,null,null,null,"",null,null,null,null,null,null,null,""]
[null,"G",null,null,null,null,"",null,null,null,null,null,null,null,"",null,null,null,null,null,null,null,"",null,null,null,null,"Algemene_activiteit","handover project (labeling, verificatie AsBuilts, manuals, …)","Variable","ST-00309-02-01",6.75,null,"Verhuis materiaal Siemens",null,"Algemene_activiteit","handover project (labeling, verificatie AsBuilts, manuals, …)","Fixed","ST-00309-01-01",4,null,null,null,"Algemene_activiteit","handover project (labeling, verificatie AsBuilts, manuals, …)","Variable","ST-00309-02-01",7,null,null,null,"Algemene_activiteit","handover project (labeling, verificatie AsBuilts, manuals, …)","Variable","ST-00309-02-01",3.25,null,null,null,"Algemene_activiteit","interventie wacht","Variable","ST-00309-02-01",2.5,null,null,null,null,null,null,"",null,null,null,null,null,null,null,"",null,null,null,null,null,null,null,"",null,null,null,null,null,null,null,"",null,null,null,null,null,null,null,"",null,null,null,null,null,null,null,"",null,null,null,null,null,null,null,"",null,null,null,null,null,null,null,"",null,null,null,null,null,null,null,"",null,null,null,null,null,null,null,"",null,null,null,null,null,null,null,"",null,null,null,null,null,null,null,"",null,null,null,null,null,null,null,"",null,null,null,null,null,null,null,"",null,null,null,null,null,null,null,"",null,null,null,null,null,null,null,"",null,null,null,null,null,null,null,"",null,null,null,null,null,null,null,"",null,null,null,null,null,null,null,"",null,null,null,null,null,null,null,""]
[null,null,null,null,null,null,"",null,null,null,null,null,null,null,"",null,null,null,null,null,null,null,"",null,null,null,null,"Algemene_activiteit","coordinatie werken - uitvoering","Fixed","ST-00309-01-01",1,null,null,null,"Algemene_activiteit","handover project (labeling, verificatie AsBuilts, manuals, …)","Variable","ST-00309-02-01",3,null,null,null,"Algemene_activiteit","administratie ","Fixed","ST-00309-01-01",0.75,null,null,null,null,null,null,"",null,null,null,null,null,null,null,"",null,null,null,null,null,null,null,"",null,null,null,null,null,null,null,"",null,null,null,null,null,null,null,"",null,null,null,null,null,null,null,"",null,null,null,null,null,null,null,"",null,null,null,null,null,null,null,"",null,null,null,null,null,null,null,"",null,null,null,null,null,null,null,"",null,null,null,null,null,null,null,"",null,null,null,null,null,null,null,"",null,null,null,null,null,null,null,"",null,null,null,null,null,null,null,"",null,null,null,null,null,null,null,"",null,null,null,null,null,null,null,"",null,null,null,null,null,null,null,"",null,null,null,null,null,null,null,"",null,null,null,null,null,null,null,"",null,null,null,null,null,null,null,"",null,null,null,null,null,null,null,"",null,null,null,null,null,null,null,""]
[null,null,null,null,null,null,"",null,null,null,null,null,null,null,"",null,null,null,null,null,null,null,"",null,null,null,null,"Algemene_activiteit","handover project (labeling, verificatie AsBuilts, manuals, …)","Variable","ST-00309-02-01",1,null,"verhuis materiaal Siemens",null,"Algemene_activiteit","administratie ","Fixed","ST-00309-01-01",0.75,null,null,null,null,null,null,null,null,null,null,null,null,null,null,"",null,null,null,null,null,null,null,"",null,null,null,null,null,null,null,"",null,null,null,null,null,null,null,"",null,null,null,null,null,null,null,"",null,null,null,null,null,null,null,"",null,null,null,null,null,null,null,"",null,null,null,null,null,null,null,"",null,null,null,null,null,null,null,"",null,null,null,null,null,null,null,"",null,null,null,null,null,null,null,"",null,null,null,null,null,null,null,"",null,null,null,null,null,null,null,"",null,null,null,null,null,null,null,"",null,null,null,null,null,null,null,"",null,null,null,null,null,null,null,"",null,null,null,null,null,null,null,"",null,null,null,null,null,null,null,"",null,null,null,null,null,null,null,"",null,null,null,null,null,null,null,"",null,null,null,null,null,null,null,"",null,null,null,null,null,null,null,""]
[null,null,null,null,null,null,"",null,null,null,null,null,null,null,"",null,null,null,null,null,null,null,"",null,null,null,null,null,null,null,"",null,null,null,null,null,null,null,"",null,null,null,null,null,null,null,"",null,null,null,null,null,null,null,"",null,null,null,null,null,null,null,"",null,null,null,null,null,null,null,"",null,null,null,null,null,null,null,"",null,null,null,null,null,null,null,"",null,null,null,null,null,null,null,"",null,null,null,null,null,null,null,"",null,null,null,null,null,null,null,"",null,null,null,null,null,null,null,"",null,null,null,null,null,null,null,"",null,null,null,null,null,null,null,"",null,null,null,null,null,null,null,"",null,null,null,null,null,null,null,"",null,null,null,null,null,null,null,"",null,null,null,null,null,null,null,"",null,null,null,null,null,null,null,"",null,null,null,null,null,null,null,"",null,null,null,null,null,null,null,"",null,null,null,null,null,null,null,"",null,null,null,null,null,null,null,"",null,null,null,null,null,null,null,"",null,null,null,null,null,null,null,""]
[null,null,null,null,null,null,"",null,null,null,null,null,null,null,"",null,null,null,null,null,null,null,"",null,null,null,null,null,null,null,"",null,null,null,null,null,null,null,"",null,null,null,null,null,null,null,"",null,null,null,null,null,null,null,"",null,null,null,null,null,null,null,"",null,null,null,null,null,null,null,"",null,null,null,null,null,null,null,"",null,null,null,null,null,null,null,"",null,null,null,null,null,null,null,"",null,null,null,null,null,null,null,"",null,null,null,null,null,null,null,"",null,null,null,null,null,null,null,"",null,null,null,null,null,null,null,"",null,null,null,null,null,null,null,"",null,null,null,null,null,null,null,"",null,null,null,null,null,null,null,"",null,null,null,null,null,null,null,"",null,null,null,null,null,null,null,"",null,null,null,null,null,null,null,"",null,null,null,null,null,null,null,"",null,null,null,null,null,null,null,"",null,null,null,null,null,null,null,"",null,null,null,null,null,null,null,"",null,null,null,null,null,null,null,"",null,null,null,null,null,null,null,""]
[null,"H",null,null,null,null,"",null,null,null,null,null,null,null,"",null,null,null,null,null,null,null,"",null,null,null,null,null,null,null,"",null,null,null,null,null,null,null,"",null,null,null,null,null,null,null,"",null,null,null,null,null,null,null,"",null,null,null,null,null,null,null,"",null,null,null,null,null,null,null,"",null,null,null,null,null,null,null,"",null,null,null,null,null,null,null,"",null,null,null,null,null,null,null,"",null,null,null,null,null,null,null,"",null,null,null,"Weekly meeting","Algemene_activiteit","planning en coordinatie werken ","Meeting","ST-00309-01-03",1,null,null,null,null,null,null,"",null,null,null,null,null,null,null,"",null,null,null,null,null,null,null,"",null,null,null,null,null,null,null,"",null,null,null,null,null,null,null,"",null,null,null,null,null,null,null,"",null,null,null,null,null,null,null,"",null,null,null,null,null,null,null,"",null,null,null,null,null,null,null,"",null,null,null,null,null,null,null,"",null,null,null,null,null,null,null,"",null,null,null,null,null,null,null,"",null,null,null,null,null,null,null,"",null,null,null,null,null,null,null,""]
[null,null,null,null,null,null,"",null,null,null,null,null,null,null,"",null,null,null,null,null,null,null,"",null,null,null,"Creation of flow chart \"alarm at Herdersbrug\"","Algemene_activiteit","planning en coordinatie werken ","Fixed","ST-00309-01-01",2,null,null,null,null,null,null,"",null,null,null,null,null,null,null,"",null,null,null,"replacement SHU at Monthly meeting Siemens CS","Algemene_activiteit","planning en coordinatie werken ","Meeting","ST-00309-01-03",7.6,null,null,null,null,null,null,"",null,null,null,null,null,null,null,"",null,null,null,null,null,null,null,"",null,null,null,null,null,null,null,"",null,null,null,null,null,null,null,"",null,null,null,null,null,null,null,"",null,null,null,null,null,null,null,"",null,null,null,null,null,null,null,"",null,null,null,null,null,null,null,"",null,null,null,null,null,null,null,"",null,null,null,null,null,null,null,"",null,null,null,null,null,null,null,"",null,null,null,null,null,null,null,"",null,null,null,null,null,null,null,"",null,null,null,null,null,null,null,"",null,null,null,null,null,null,null,"",null,null,null,null,null,null,null,"",null,null,null,null,null,null,null,"",null,null,null,null,null,null,null,"",null,null,null,null,null,null,null,"",null,null,null,null,null,null,null,""]
[]
[]
[]
[null,"I",null,null,null,null,{"$f":"IFERROR(INDIRECT(F44),\"\")","v":""},null,null,null,null,null,null,null,{"$f":"IFERROR(INDIRECT(N44),\"\")","v":""},null,null,null,null,null,null,null,{"$f":"IFERROR(INDIRECT(V44),\"\")","v":""},null,null,null,null,null,null,null,{"$f":"IFERROR(INDIRECT(AD44),\"\")","v":""},null,null,null,null,null,null,null,{"$f":"IFERROR(INDIRECT(AL44),\"\")","v":""},null,null,null,null,null,null,null,{"$f":"IFERROR(INDIRECT(AT44),\"\")","v":""},null,null,null,null,null,null,null,{"$f":"IFERROR(INDIRECT(BB44),\"\")","v":""},null,null,null,null,null,null,null,{"$f":"IFERROR(INDIRECT(BJ44),\"\")","v":""},null,null,null,null,null,null,null,{"$f":"IFERROR(INDIRECT(BR44),\"\")","v":""},null,null,null,null,null,null,null,{"$f":"IFERROR(INDIRECT(BZ44),\"\")","v":""},null,null,null,null,null,null,null,{"$f":"IFERROR(INDIRECT(CH44),\"\")","v":""},null,null,null,null,null,null,null,{"$f":"IFERROR(INDIRECT(CP44),\"\")","v":""},null,null,null,null,null,null,null,{"$f":"IFERROR(INDIRECT(CX44),\"\")","v":""},null,null,null,"Weekly meeting","Algemene_activiteit","planning en coordinatie werken ","Meeting",{"$f":"IFERROR(INDIRECT(DF44),\"\")","v":"ST-00309-01-03"},1,null,null,null,null,null,null,{"$f":"IFERROR(INDIRECT(DN44),\"\")","v":""},null,null,null,null,null,null,null,{"$f":"IFERROR(INDIRECT(DV44),\"\")","v":""},null,null,null,null,null,null,null,{"$f":"IFERROR(INDIRECT(ED44),\"\")","v":""},null,null,null,null,null,null,null,{"$f":"IFERROR(INDIRECT(EL44),\"\")","v":""},null,null,null,null,null,null,null,{"$f":"IFERROR(INDIRECT(ET44),\"\")","v":""},null,null,null,null,null,null,null,{"$f":"IFERROR(INDIRECT(FB44),\"\")","v":""},null,null,null,null,null,null,null,{"$f":"IFERROR(INDIRECT(FJ44),\"\")","v":""},null,null,null,null,null,null,null,{"$f":"IFERROR(INDIRECT(FR44),\"\")","v":""},null,null,null,null,null,null,null,{"$f":"IFERROR(INDIRECT(FZ44),\"\")","v":""},null,null,null,null,null,null,null,{"$f":"IFERROR(INDIRECT(GH44),\"\")","v":""},null,null,null,null,null,null,null,{"$f":"IFERROR(INDIRECT(GP44),\"\")","v":""},null,null,null,null,null,null,null,{"$f":"IFERROR(INDIRECT(GX44),\"\")","v":""},null,null,null,null,null,null,null,{"$f":"IFERROR(INDIRECT(HF44),\"\")","v":""},null,null,null,null,null,null,null,{"$f":"IFERROR(INDIRECT(HN44),\"\")","v":""}]

{"sheet":"Keuzetabellen","index":1,"n_rows":58,"n_cols":6,"rows_kept":58,"cut":false,"hidden":false,"merged":[]}
[null,"Type","Imputatienummer"]
[null,"Fixed","ST-00309-01-01"]
[null,"Variable","ST-00309-02-01"]
[null,"Yearly_maintenance","ST-00309-01-02"]
[null,"Meeting","ST-00309-01-03"]
[null,"Niet_Nemo_activiteit","Elia-imp. Nummer"]
[]
[null,"Algemene_activiteit","preventatief_onderhoud","curatief_onderhoud","incident _preparedness_and_procedures","training_krijgen"]
[null,"administratie ","auxiliary power supply ","auxiliary power supply ","auxiliary power supply ","auxiliary power supply "]
[null,"algemene technische opleidingen krijgen (hoogwerker, stelling ,…)","Building - site access and security","Building - site access and security","Building - site access and security","Building - site access and security"]
[null,"Asset Management","Building, terain and other building services","Building, terain and other building services","Building, terain and other building services","Building, terain and other building services"]
[null,"beheer plannen ","C&P -  AC ","C&P -  AC ","C&P -  AC ","C&P -  AC "]
[null,"coordinatie werken - uitvoering","C&P - HVDC ","HVDC C&P","HVDC C&P","HVDC C&P"]
[null,"coordinatie werken - voorbereiding","C&P - HVDC IT systemen ","HVDC IT systemen ","HVDC IT systemen ","HVDC IT systemen "]
[null,"Incident analyse","CWC","CWC","CWC","CWC"]
[null,"peterschap post ","Firefighting","Firefighting","Firefighting","Firefighting"]
[null,"planning en coordinatie werken ","HV - AC switchgear","HV - AC switchgear","HV - AC switchgear","HV - AC switchgear"]
[null,"schakelen en veiligstellen ","HV - Converter towers","HV - Converter towers","HV - Converter towers","HV - Converter towers"]
[null,"tour post en kleine preventieve inspecties ","HV - DC switchgear ","HV - DC switchgear ","HV - DC switchgear ","HV - DC switchgear "]
[null,"veiligheidsopleidingen geven","HV - Interface transformer","HV - Interface transformer","HV - Interface transformer","HV - Interface transformer"]
[null,"veiligheidsopleidingen krijgen ","HVAC \"critical\" ","HVAC \"critical\" ","HVAC \"critical\" ","HVAC \"critical\" "]
[null,"interventie wacht","HVAC Building & airco","HVAC Building & airco","HVAC Building & airco","HVAC Building & airco"]
[null,"handover project (labeling, verificatie AsBuilts, manuals, …)",null,null,null,"NDS"]
[]
[]
[]
[null,"wie"]
[null,"naam 1"]
[null,"naam 2",null,"keuzetabel beschrijving"]
[null,"naam 3",null,"administratie "]
[null,"naam 4",null,"algemene technische opleidingen krijgen"]
[null,"naam 5",null,"Asset Management"]
[null,"naam 6",null,"beheer plannen "]
[null,"naam 7",null,"coordinatie werken - uitvoering"]
[null,"naam 8",null,"coordinatie werken - voorbereiding"]
[null,"naam 9",null,"Incident analyse"]
[null,"naam 10",null,"peterschap post "]
[null,null,null,"planning en coordinatie werken "]
[null,null,null,"schakelen en veiligstellen "]
[null,null,null,"tour post en kleine preventieve inspecties "]
[null,null,null,"veiligheidsopleidingen geven"]
[null,null,null,"veiligheidsopleidingen krijgen "]
[null,null,null,"handover project"]
[null,null,null,"auxiliary power supply "]
[null,null,null,"Building - site access and security"]
[null,null,null,"Building, terain and other building services"]
[null,null,null,"C&P -  AC "]
[null,null,null,"C&P - HVDC "]
[null,null,null,"C&P - HVDC IT systemen "]
[null,null,null,"CWC"]
[null,null,null,"Firefighting"]
[null,null,null,"HV - AC switchgear"]
[null,null,null,"HV - Converter towers"]
[null,null,null,"HV - DC switchgear "]
[null,null,null,"HV - Interface transformer"]
[null,null,null,"HVAC \"critical\" "]
[null,null,null,"HVAC Building & airco"]
[null,null,null,"NDS"]

{"sheet":"Facturatie","index":2,"n_rows":5,"n_cols":2,"rows_kept":5,"cut":false,"hidden":false,"merged":[]}
[null,4]
[null,2]
[null,0]
[null,0]
[null,0]

{"sheet":"Uren","index":3,"n_rows":0,"n_cols":0,"rows_kept":0,"cut":false,"hidden":false,"merged":[]}